bitfinex/quotes_BTCUSD_20250224
["timestamp","ask_amount","ask_price","bid_price","bid_amount"]
[1740441068124,3.70905722,91934.0,91933.0,3.40235859]
[1740441068456,3.68905722,91934.0,91933.0,3.40235859]
[1740441068664,2.90635722,91934.0,91933.0,3.40235859]
[1740441068814,2.90835722,91934.0,91933.0,3.3570916]
[1740441069021,2.92835722,91934.0,91933.0,3.3570916]
[1740441069224,2.92635722,91934.0,91933.0,3.3570916]
[1740441069606,2.94539762,91934.0,91933.0,3.3570916]
[1740441069804,2.91191762,91934.0,91933.0,3.3570916]
[1740441070012,1.98565722,91934.0,91933.0,3.3570916]
[1740441070364,1.96974631,91934.0,91933.0,3.3570916]
[1740441070732,1.96774631,91934.0,91933.0,3.3570916]
[1740441070943,1.94774631,91934.0,91933.0,3.3570916]
[1740441071140,1.93626631,91934.0,91933.0,3.3570916]
[1740441071348,3.69444631,91934.0,91933.0,3.3570916]
[1740441071556,1.96774631,91934.0,91933.0,3.3570916]
[1740441071977,4.21264631,91934.0,91933.0,3.3570916]
[1740441072140,3.12876244,91934.0,91933.0,3.3570916]
[1740441072351,3.12876244,91934.0,91933.0,3.35207769]
[1740441072600,3.12660288,91934.0,91933.0,3.35207769]
[1740441072800,3.12660288,91934.0,91933.0,3.34764856]
[1740441073057,3.14552543,91934.0,91933.0,3.34764856]
[1740441074061,3.14552543,91934.0,91933.0,3.32597574]
[1740441074400,3.14364265,91934.0,91933.0,3.30367253]
[1740441074622,3.14352543,91934.0,91933.0,3.30367253]
[1740441074786,3.12275843,91934.0,91933.0,3.30367253]
[1740441075161,3.10927843,91934.0,91933.0,3.30367253]
[1740441075362,3.36583843,91934.0,91933.0,3.30367253]
[1740441075790,3.35079866,91934.0,91933.0,3.29618963]
[1740441075986,3.33658173,91934.0,91933.0,3.29618963]
[1740441076365,3.07403443,91934.0,91933.0,3.29618963]
[1740441076565,3.07403443,91934.0,91933.0,3.27235112]
[1740441076806,3.33458173,91934.0,91933.0,3.27235112]
[1740441077767,2.70218173,91934.0,91933.0,3.27235112]
[1740441077975,2.53718173,91934.0,91933.0,3.27235112]
[1740441078210,2.35448173,91934.0,91933.0,3.27235112]
[1740441078390,2.34100173,91934.0,91933.0,3.27235112]
[1740441078593,2.35548173,91934.0,91933.0,3.27235112]
[1740441078946,2.12738937,91934.0,91933.0,2.72606358]
[1740441079111,2.14082937,91934.0,91933.0,2.72606358]
[1740441079291,2.01082937,91934.0,91933.0,2.72606358]
[1740441079695,2.00939837,91934.0,91933.0,2.72606358]
[1740441079882,2.15939837,91934.0,91933.0,2.72606358]
[1740441080716,2.15939837,91934.0,91933.0,2.72610438]
[1740441080967,2.16139837,91934.0,91933.0,2.72610438]
[1740441081111,2.15951559,91934.0,91933.0,2.72610438]
[1740441081308,2.15751559,91934.0,91933.0,2.72610438]
[1740441081513,7.20956025,91934.0,91933.0,2.72610438]
[1740441081718,7.19812025,91934.0,91933.0,2.72610438]
[1740441081915,7.21156025,91934.0,91933.0,2.72610438]
[1740441082129,7.20956025,91934.0,91933.0,2.72610438]
[1740441082554,7.21156025,91934.0,91933.0,2.72610438]
[1740441082750,7.21917349,91934.0,91933.0,2.72610438]
[1740441082955,7.2362135,91934.0,91933.0,2.72610438]
[1740441083484,7.21917349,91934.0,91933.0,2.72610438]
[1740441083627,6.20827349,91934.0,91933.0,1.72610438]
[1740441083971,6.20627349,91934.0,91933.0,1.72610438]
[1740441084335,6.20827349,91934.0,91933.0,1.72610438]
[1740441084752,6.20627349,91934.0,91933.0,1.70580438]
[1740441084949,6.2241908,91934.0,91933.0,1.70580438]
[1740441085366,6.2119908,91934.0,91933.0,1.70580438]
[1740441085737,6.07734136,91934.0,91933.0,1.68790438]
[1740441086349,6.09437723,91934.0,91933.0,1.68790438]
[1740441086870,6.07734136,91934.0,91933.0,1.68790438]
[1740441087072,6.1940908,91934.0,91933.0,1.68790438]
[1740441087679,4.5441908,91934.0,91933.0,0.03900438]
[1740441088039,4.2836435,91934.0,91933.0,0.03900438]
[1740441088428,4.5307508,91934.0,91933.0,0.03900438]
[1740441088630,2.1830908,91934.0,91933.0,0.03900438]
[1740441088933,4.5107508,91934.0,91933.0,0.03900438]
[1740441089141,4.5441908,91934.0,91933.0,0.03900438]
[1740441089664,4.5241908,91934.0,91933.0,0.03900438]
[1740441090226,4.53922651,91934.0,91933.0,0.03900438]
[1740441090434,4.55922651,91934.0,91933.0,0.03900438]
[1740441090636,4.56122651,91934.0,91933.0,0.03900438]
[1740441091218,4.55922651,91934.0,91933.0,0.03900438]
[1740441091523,4.5441908,91934.0,91933.0,0.03900438]
[1740441091946,4.5550936,91934.0,91933.0,0.03900438]
[1740441092151,4.5570936,91934.0,91933.0,0.03766338]
[1740441092637,4.5570936,91934.0,91900.0,17.34378257]
[1740441092638,0.02,91901.0,91900.0,17.34378257]
[1740441092879,2.92231428,91901.0,91900.0,17.33347515]
[1740441093322,2.92992757,91901.0,91900.0,17.33347515]
[1740441093895,2.92997057,91901.0,91900.0,17.28826504]
[1740441094076,2.69397057,91901.0,91900.0,17.05226504]
[1740441094274,2.68337057,91901.0,91900.0,17.05226504]
[1740441094477,2.43687057,91901.0,91900.0,16.78936504]
[1740441094681,2.44280964,91901.0,91900.0,16.78936504]
[1740441095045,3.30280964,91901.0,91900.0,16.65096504]
[1740441095283,2.14530964,91901.0,91900.0,15.49286504]
[1740441095579,2.14330964,91901.0,91900.0,15.47176504]
[1740441095757,1.93720964,91901.0,91900.0,15.27266504]
[1740441095959,1.7166921,91901.0,91900.0,15.06806504]
[1740441096164,1.5801321,91901.0,91900.0,15.06806504]
[1740441096362,1.55251881,91901.0,91900.0,15.14626504]
[1740441096596,1.57251881,91901.0,91900.0,15.14626504]
[1740441096949,1.70251881,91901.0,91900.0,15.14626504]
[1740441097334,1.72051881,91901.0,91900.0,15.14626504]
[1740441097537,1.72251881,91901.0,91900.0,15.06806504]
[1740441097768,1.70747974,91901.0,91900.0,15.06806504]
[1740441097967,1.70347974,91901.0,91900.0,15.06806504]
[1740441098373,1.70747974,91901.0,91900.0,15.06797315]
[1740441098583,1.68547974,91901.0,91900.0,15.06797315]
[1740441098777,1.52203974,91901.0,91900.0,15.19337315]
[1740441099005,0.77493244,91901.0,91900.0,15.19337315]
[1740441099355,0.678183,91901.0,91900.0,15.19337315]
[1740441099725,0.676183,91901.0,91900.0,15.19337315]
[1740441099907,1.178183,91901.0,91900.0,15.19422305]
[1740441100150,1.330183,91901.0,91900.0,15.14513023]
[1740441100277,1.28423244,91901.0,91900.0,15.14513023]
[1740441100484,1.42493244,91901.0,91900.0,15.14513023]
[1740441100706,1.27693244,91901.0,91900.0,15.14513023]
[1740441100915,0.77493244,91901.0,91900.0,15.14513023]
[1740441101127,0.79396868,91901.0,91900.0,15.14513023]
[1740441101339,0.79196868,91901.0,91900.0,15.14513023]
[1740441101633,0.79396868,91901.0,91900.0,15.14513023]
[1740441101794,0.79596868,91901.0,91900.0,15.14513023]
[1740441101991,0.94596868,91901.0,91900.0,15.14513023]
[1740441102965,0.94396868,91901.0,91900.0,15.14513023]
[1740441103169,0.96196868,91901.0,91900.0,15.01973023]
[1740441104000,1.46196868,91901.0,91900.0,15.01973023]
[1740441104176,1.44493244,91901.0,91900.0,15.01973023]
[1740441104706,1.42693244,91901.0,91900.0,15.01973023]
[1740441104935,1.44493244,91901.0,91900.0,15.01973023]
[1740441105931,0.94293244,91901.0,91900.0,15.01973023]
[1740441106098,0.94493244,91901.0,91900.0,15.01973023]
[1740441106261,0.92593244,91901.0,91900.0,15.01999133]
[1740441106840,0.77593244,91901.0,91900.0,15.10199133]
[1740441107060,0.77293244,91901.0,91900.0,15.10199133]
[1740441107484,0.77952824,91901.0,91900.0,15.10199133]
[1740441107781,0.77952824,91901.0,91900.0,15.14899133]
[1740441107782,0.78996824,91901.0,91900.0,15.14899133]
[1740441107980,0.52016824,91901.0,91900.0,15.14899133]
[1740441108192,0.4024188,91901.0,91900.0,15.14899133]
[1740441109049,0.5524188,91901.0,91900.0,15.14899133]
[1740441109220,0.8251758,91901.0,91900.0,15.14899133]
[1740441109464,0.8451758,91901.0,91900.0,15.14899133]
[1740441109670,0.8441758,91901.0,91900.0,15.14899133]
[1740441109819,0.8231758,91901.0,91900.0,15.14899133]
[1740441110024,1.3451758,91901.0,91900.0,15.14899133]
[1740441110229,1.3461758,91901.0,91900.0,15.14899133]
[1740441110439,1.32914,91901.0,91900.0,15.14899133]
[1740441110773,1.25714,91901.0,91900.0,15.14899133]
[1740441110922,1.11544,91901.0,91900.0,15.14899133]
[1740441111136,1.25814,91901.0,91900.0,15.14899133]
[1740441111352,1.25914,91901.0,91900.0,15.14899133]
[1740441111561,1.30914,91901.0,91900.0,15.14899133]
[1740441111957,0.80914,91901.0,91900.0,15.14899133]
[1740441112162,0.80714,91901.0,91900.0,15.14899133]
[1740441112564,0.80814,91901.0,91900.0,15.14899133]
[1740441112953,0.80914,91901.0,91900.0,15.14899133]
[1740441113157,0.80614,91901.0,91900.0,15.14899133]
[1740441113400,0.80814,91901.0,91900.0,15.14899133]
[1740441113587,0.80914,91901.0,91900.0,15.14899133]
[1740441113752,0.65614,91901.0,91900.0,15.14899133]
[1740441114321,0.65914,91901.0,91900.0,15.14899133]
[1740441114451,0.65814,91901.0,91900.0,15.14899133]
[1740441115043,0.80814,91901.0,91900.0,15.14899133]
[1740441115283,0.80614,91901.0,91900.0,15.14899133]
[1740441115658,0.80814,91901.0,91900.0,15.14899133]
[1740441116164,0.80614,91901.0,91900.0,15.14899133]
[1740441116425,0.80714,91901.0,91900.0,15.14899133]
[1740441116625,0.66644,91901.0,91900.0,15.14899133]
[1740441116958,0.66444,91901.0,91900.0,15.14899133]
[1740441117163,0.68247539,91901.0,91900.0,15.14899133]
[1740441117693,0.68347539,91901.0,91900.0,15.14899133]
[1740441118502,0.68147539,91901.0,91900.0,15.14899133]
[1740441118729,0.68247539,91901.0,91900.0,15.14899133]
[1740441119143,0.68347539,91901.0,91900.0,15.14899133]
[1740441119346,0.68047539,91901.0,91900.0,15.14899133]
[1740441119478,0.66903539,91901.0,91900.0,15.14899133]
[1740441119677,0.68347539,91901.0,91900.0,15.14899133]
[1740441120122,0.66544,91901.0,91900.0,15.14899133]
[1740441120330,0.66744,91901.0,91900.0,15.14899133]
[1740441121499,0.66544,91901.0,91900.0,15.14899133]
[1740441121699,0.67475407,91901.0,91900.0,15.14899133]
[1740441121924,0.67675407,91901.0,91900.0,15.14899133]
[1740441122099,0.67775407,91901.0,91900.0,15.14899133]
[1740441122299,0.67475407,91901.0,91900.0,15.14899133]
[1740441122668,0.67775407,91901.0,91900.0,15.14899133]
[1740441123232,0.67575407,91901.0,91900.0,15.14899133]
[1740441123620,0.66331407,91901.0,91900.0,15.14899133]
[1740441124034,0.01591764,91922.0,91900.0,15.14899133]
[1740441124285,0.0016992,91934.0,91923.0,0.0499]
[1740441124485,0.0016992,91934.0,91933.0,0.08701942]
[1740441124706,0.0016992,91934.0,91933.0,0.16201942]
[1740441124884,0.01301998,91934.0,91933.0,0.16201942]
[1740441125221,0.0016986,91967.0,91939.0,0.1149]
[1740441125222,0.0151386,91967.0,91939.0,0.1149]
[1740441125357,0.0151386,91967.0,91946.0,0.08701942]
[1740441125558,0.00211989,91966.0,91948.0,0.0785]
[1740441125766,0.01703356,91962.0,91951.0,0.1149]
[1740441125990,0.00211989,91966.0,91953.0,0.1149]
[1740441126203,0.0016986,91967.0,91953.0,0.1139]
[1740441126401,0.501698,92001.0,91966.0,0.33516288]
[1740441126402,0.01344,91991.0,91966.0,0.33516288]
[1740441126602,0.01344,91991.0,91967.0,0.1129]
[1740441126921,0.1517014,91993.0,91967.0,0.1099]
[1740441127124,0.1517014,91993.0,91966.0,0.33516288]
[1740441127125,0.0017014,91993.0,91974.0,0.02]
[1740441127331,0.0017014,91993.0,91992.0,0.45487738]
[1740441127526,0.0017014,91993.0,91992.0,0.91768602]
[1740441127742,0.0017014,91993.0,91992.0,0.90353627]
[1740441127940,0.64310763,91994.0,91993.0,0.1269]
[1740441128145,0.74508,92043.0,91993.0,0.1269]
[1740441128146,0.48786199,92043.0,91993.0,0.1269]
[1740441128444,0.02,92040.0,92022.0,0.34597738]
[1740441128691,0.01344,92042.0,92023.0,0.42505156]
[1740441128803,0.02,92040.0,92023.0,0.42505156]
[1740441129012,0.00043437,92043.0,92024.0,0.37498137]
[1740441129212,0.0078,92032.0,92024.0,0.37398137]
[1740441129819,0.00761337,92031.0,92024.0,0.37398137]
[1740441130018,0.0078,92032.0,92024.0,0.37398137]
[1740441131058,0.0078,92032.0,92013.0,0.03775708]
[1740441131059,0.0078,92032.0,92025.0,0.37398137]
[1740441131275,0.0134,92031.0,92025.0,0.37398137]
[1740441131471,0.0134,92030.0,92025.0,0.37398137]
[1740441132671,0.0134,92029.0,92025.0,0.37398137]
[1740441132889,0.0020108,92028.0,92025.0,0.37398137]
[1740441133857,0.01903268,92028.0,92025.0,0.37398137]
[1740441134256,0.0020108,92028.0,92025.0,0.37398137]
[1740441134962,0.0134,92027.0,92025.0,0.37398137]
[1740441135162,0.0134,92027.0,92026.0,0.37398137]
[1740441135545,0.0134,92027.0,92026.0,0.35969913]
[1740441136074,0.0144,92027.0,92026.0,0.35969913]
[1740441136293,0.0144,92027.0,92014.0,0.35969913]
[1740441136502,0.02101337,92027.0,92014.0,0.35969913]
[1740441136635,0.0144,92027.0,92014.0,0.35969913]
[1740441137235,0.01702339,92024.0,92014.0,0.35969913]
[1740441137837,0.01702339,92024.0,92015.0,0.35969913]
[1740441139059,0.01702339,92024.0,92016.0,0.08693809]
[1740441139881,0.01702339,92024.0,92017.0,0.35969913]
[1740441140084,0.01702339,92024.0,92018.0,0.35969913]
[1740441140307,0.0134,92027.0,92018.0,0.35969913]
[1740441140459,0.0016998,92028.0,92018.0,0.35969913]
[1740441140667,0.0016998,92028.0,92019.0,0.35969913]
[1740441140668,0.0134,92027.0,92019.0,0.35969913]
[1740441140860,0.0134,92027.0,92020.0,0.35969913]
[1740441141135,0.0016998,92028.0,92007.0,0.03775708]
[1740441141136,0.0016998,92028.0,92021.0,0.35969913]
[1740441141322,0.0134,92026.0,92022.0,0.44663722]
[1740441141538,0.0134,92027.0,92023.0,0.35969913]
[1740441141741,0.01131703,92027.0,92024.0,0.35969913]
[1740441141947,0.0016998,92028.0,92025.0,0.35969913]
[1740441142289,0.0016998,92028.0,92022.0,0.08693809]
[1740441142290,0.0016998,92028.0,92026.0,0.35969913]
[1740441142827,0.0016998,92028.0,92027.0,0.35969913]
[1740441144589,0.0150998,92028.0,92008.0,0.35969913]
[1740441144868,0.0150998,92028.0,91999.0,0.35969913]
[1740441145054,0.0150998,92028.0,91982.0,0.08635708]
[1740441145055,0.0150998,92028.0,92000.0,0.35969913]
[1740441145223,0.0150998,92028.0,91982.0,0.08635708]
[1740441145224,0.02,92022.0,91983.0,0.35969913]
[1740441145399,0.02,92022.0,91965.0,0.0823]
[1740441145400,0.02,92004.0,91984.0,0.35969913]
[1740441145603,0.15,92002.0,91953.0,0.1309]
[1740441145803,0.26554116,92003.0,91953.0,0.0486]
[1740441145804,0.0963,91996.0,91953.0,0.0486]
[1740441146060,0.0963,91996.0,91941.0,0.0823]
[1740441146061,0.16494064,91995.0,91941.0,0.0823]
[1740441146267,0.16494064,91995.0,91937.0,0.0495]
[1740441146268,0.02,91978.0,91937.0,0.0495]
[1740441146477,0.15,91976.0,91933.0,0.08401942]
[1740441146688,0.02,91968.0,91933.0,0.08401942]
[1740441146894,0.02,91944.0,91933.0,0.00012902]
[1740441147107,0.15,91942.0,91933.0,0.00012902]
[1740441147430,0.00203108,91941.0,91933.0,0.00012902]
[1740441147830,0.15,91937.0,91933.0,0.00012902]
[1740441148038,0.03539703,91936.0,91933.0,0.00012902]
[1740441148269,0.02,91934.0,91933.0,0.00012902]
[1740441148487,0.02198071,91934.0,91933.0,0.00012902]
[1740441148905,0.02736212,91934.0,91933.0,0.00012902]
[1740441149307,0.02198071,91934.0,91933.0,0.00012902]
[1740441149765,0.00198071,91934.0,91933.0,0.00012902]
[1740441150004,0.51538071,91934.0,91908.0,0.0008475]
[1740441150177,0.51353001,91934.0,91908.0,0.0008475]
[1740441150498,0.15185263,91933.0,91911.0,0.08693809]
[1740441150713,0.01703912,91928.0,91911.0,0.08693809]
[1740441150823,0.01703912,91928.0,91921.0,0.08693809]
[1740441151034,0.00185893,91927.0,91921.0,0.08693809]
[1740441151332,0.00013001,91934.0,91921.0,0.08693809]
[1740441151757,0.01131503,91933.0,91921.0,0.08693809]
[1740441151970,0.01131503,91933.0,91931.0,0.08693809]
[1740441153610,0.00185893,91932.0,91931.0,0.08693809]
[1740441153816,0.00185893,91932.0,91911.0,0.08693809]
[1740441154168,0.00185893,91932.0,91908.0,0.0008475]
[1740441154550,0.00545143,91931.0,91908.0,0.0008475]
[1740441154966,0.15,91927.0,91908.0,0.0008475]
[1740441155455,0.00185893,91926.0,91908.0,0.0008475]
[1740441156047,0.00545143,91925.0,91908.0,0.0008475]
[1740441156536,0.00185893,91924.0,91908.0,0.0008475]
[1740441156908,0.15,91917.0,91908.0,0.0008475]
[1740441157105,0.15,91915.0,91908.0,0.0008475]
[1740441157270,0.00185893,91914.0,91908.0,0.0008475]
[1740441158675,0.00582269,91913.0,91908.0,0.0008475]
[1740441158878,0.00185299,91912.0,91908.0,0.0008475]
[1740441159321,0.15,91915.0,91908.0,0.0008475]
[1740441159523,0.00185299,91914.0,91888.0,0.0005]
[1740441159926,0.15,91908.0,91888.0,0.0005]
[1740441160396,0.2251,91906.0,91888.0,0.0005]
[1740441160995,0.65,91901.0,91888.0,0.0005]
[1740441161627,0.65023912,91901.0,91900.0,15.02042198]
[1740441161822,0.65606181,91901.0,91900.0,15.02042198]
[1740441163287,0.6943196,91901.0,91900.0,15.02042198]
[1740441164466,0.6943196,91901.0,91900.0,14.88100198]
[1740441164590,0.7077196,91901.0,91900.0,13.7508466]
[1740441164791,0.7077196,91901.0,91900.0,13.45088716]
[1740441165205,0.7077196,91901.0,91900.0,13.33988716]
[1740441165507,0.72532372,91901.0,91900.0,13.33988716]
[1740441166195,0.74237266,91901.0,91900.0,13.33988716]
[1740441166399,0.74237266,91901.0,91900.0,13.32551476]
[1740441166592,0.73631085,91901.0,91900.0,13.32536075]
[1740441166792,0.73631085,91901.0,91900.0,13.31929894]
[1740441167051,0.74763517,91901.0,91900.0,13.31929894]
[1740441167250,0.73058623,91901.0,91900.0,13.31883095]
[1740441167497,0.95748844,91901.0,91900.0,13.30057316]
[1740441168740,1.07423788,91901.0,91900.0,13.2127467]
[1740441169190,1.07423788,91901.0,91900.0,13.2116317]
[1740441169656,1.42244056,91901.0,91900.0,13.2116317]
[1740441169878,1.07423788,91901.0,91900.0,13.2116317]
[1740441170114,1.42244056,91901.0,91900.0,13.2116317]
[1740441170369,1.07423788,91901.0,91900.0,13.2116317]
[1740441171093,1.33478518,91901.0,91900.0,12.9041324]
[1740441171335,1.31718106,91901.0,91900.0,12.36156605]
[1740441171572,1.33478518,91901.0,91900.0,10.94423856]
[1740441171806,6.10338518,91901.0,91900.0,9.55674899]
[1740441172054,6.15951594,91901.0,91900.0,9.11972331]
[1740441172313,4.8414715,91901.0,91900.0,9.11022383]
[1740441172518,4.78704014,91901.0,91900.0,7.83340511]
[1740441172760,4.7581117,91901.0,91900.0,7.27631423]
[1740441173007,4.7587117,91901.0,91900.0,6.44316576]
[1740441173244,5.51314306,91901.0,91900.0,6.43070464]
[1740441173486,5.51314306,91901.0,91900.0,5.85350652]
[1740441173487,5.4587117,91901.0,91900.0,5.85350652]
[1740441173729,5.51107121,91901.0,91900.0,5.47376042]
[1740441173971,5.43663985,91901.0,91900.0,5.39347975]
[1740441174225,5.46903985,91901.0,91900.0,5.37433602]
[1740441174463,5.46903985,91901.0,91900.0,5.12433602]
[1740441174705,5.46903985,91901.0,91900.0,5.10923203]
[1740441174943,5.46903985,91901.0,91900.0,5.09698489]
[1740441175197,5.46903985,91901.0,91900.0,5.01751216]
[1740441175447,5.46903985,91901.0,91900.0,4.93937607]
[1740441175644,5.46903985,91901.0,91900.0,4.72042135]
[1740441175873,5.46903985,91901.0,91900.0,4.0708927]
[1740441176285,5.46903985,91901.0,91900.0,3.69057425]
[1740441176597,5.46903985,91901.0,91900.0,3.51915578]
[1740441177139,5.71523002,91901.0,91900.0,2.94895578]
[1740441177271,5.71523002,91901.0,91900.0,2.83195578]
[1740441177469,5.55183002,91901.0,91900.0,2.83195578]
[1740441177800,5.56772092,91901.0,91900.0,2.83195578]
[1740441178000,5.56772092,91901.0,91900.0,2.77757014]
[1740441178555,5.5847625,91901.0,91900.0,2.77757014]
[1740441178758,3.6435625,91901.0,91900.0,2.77757014]
[1740441178958,2.23872092,91901.0,91900.0,2.77757014]
[1740441179168,1.96627002,91901.0,91900.0,2.77757014]
[1740441179281,1.83727002,91901.0,91900.0,2.77757014]
[1740441179480,1.85727002,91901.0,91900.0,2.77757014]
[1740441179682,1.17067002,91901.0,91900.0,2.76329884]
[1740441179910,1.15727002,91901.0,91900.0,2.76329884]
[1740441180119,1.17067002,91901.0,91900.0,2.76329884]
[1740441180320,1.15067002,91901.0,91900.0,2.76329884]
[1740441180490,1.17067002,91901.0,91900.0,2.76329884]
[1740441180945,1.15067002,91901.0,91900.0,2.76329884]
[1740441181149,1.13727002,91901.0,91900.0,2.76329884]
[1740441181495,0.87672272,91901.0,91900.0,2.76329884]
[1740441181691,1.17067002,91901.0,91900.0,2.76329884]
[1740441181934,1.15727002,91901.0,91900.0,2.76329884]
[1740441182142,1.13727002,91901.0,91900.0,2.76329884]
[1740441182458,1.15067002,91901.0,91900.0,2.76329884]
[1740441182664,1.17067002,91901.0,91900.0,2.76329884]
[1740441182809,1.30067002,91901.0,91900.0,2.76329884]
[1740441183020,1.15067002,91901.0,91900.0,2.76329884]
[1740441183222,1.17067002,91901.0,91900.0,2.76329884]
[1740441183448,1.15727002,91901.0,91900.0,2.76329884]
[1740441183649,1.32067002,91901.0,91900.0,2.76329884]
[1740441183847,1.32067002,91901.0,91900.0,2.66311762]
[1740441184072,1.32067002,91901.0,91900.0,2.15023556]
[1740441184313,1.32067002,91901.0,91900.0,2.11417781]
[1740441184520,1.32067002,91901.0,91900.0,2.08974499]
[1740441185003,1.37829933,91901.0,91900.0,1.94766031]
[1740441185205,1.37829933,91901.0,91900.0,1.79372228]
[1740441185411,1.32386797,91901.0,91900.0,0.60546454]
[1740441185606,5.55791853,91901.0,91900.0,0.60546454]
[1740441186145,5.41157277,91901.0,91900.0,0.60546454]
[1740441186286,1.18772426,91901.0,91900.0,0.60546454]
[1740441186495,0.67167002,91901.0,91900.0,0.60546454]
[1740441186897,0.65827002,91901.0,91900.0,0.60546454]
[1740441187122,0.67167002,91901.0,91900.0,0.60546454]
[1740441187500,0.65827002,91901.0,91900.0,0.60546454]
[1740441187839,0.67167002,91901.0,91900.0,0.60546454]
[1740441188044,1.15827002,91901.0,91900.0,0.60546454]
[1740441188215,1.30827002,91901.0,91900.0,0.60546454]
[1740441188417,2.02509378,91901.0,91900.0,0.60546454]
[1740441189449,6.37529378,91901.0,91900.0,0.60546454]
[1740441190524,0.02,91876.0,91875.0,1.68405501]
[1740441190748,5.09869674,91876.0,91875.0,1.66703402]
[1740441190909,5.31921538,91876.0,91875.0,1.65524518]
[1740441191627,6.03261538,91876.0,91875.0,1.65524518]
[1740441191830,6.04391477,91876.0,91875.0,1.65524518]
[1740441192030,6.04391477,91876.0,91875.0,1.63833646]
[1740441192372,5.78336747,91876.0,91875.0,1.63833646]
[1740441192602,5.78336747,91876.0,91875.0,1.20074211]
[1740441192736,5.78488533,91876.0,91875.0,1.20074211]
[1740441192934,6.04543263,91876.0,91875.0,0.87258276]
[1740441193985,6.54543263,91876.0,91875.0,0.87258276]
[1740441194189,6.44543263,91876.0,91875.0,0.43510624]
[1740441195379,6.44543263,91876.0,91875.0,0.43595594]
[1740441195824,6.43203263,91876.0,91875.0,0.43595594]
[1740441196016,6.29358778,91876.0,91875.0,0.43595594]
[1740441196222,4.56693834,91876.0,91875.0,0.43595594]
[1740441196357,4.30238616,91876.0,91875.0,0.43586403]
[1740441196682,4.17299613,91876.0,91875.0,0.43586403]
[1740441196999,2.23659613,91876.0,91875.0,0.43586403]
[1740441197208,1.95269613,91876.0,91875.0,0.43586403]
[1740441197401,1.72319613,91876.0,91875.0,0.43586403]
[1740441197925,1.72684837,91876.0,91875.0,0.43586403]
[1740441198059,1.74024837,91876.0,91875.0,0.43586403]
[1740441198270,1.72319613,91876.0,91875.0,0.43586403]
[1740441198876,1.01189674,91876.0,91875.0,0.43586403]
[1740441199316,0.99849674,91876.0,91875.0,0.43586403]
[1740441199499,1.01189674,91876.0,91875.0,0.43586403]
[1740441200780,1.01189674,91876.0,91875.0,0.43590403]
[1740441202757,0.99849674,91876.0,91875.0,0.43590403]
[1740441202964,0.75134944,91876.0,91875.0,0.43590403]
[1740441203371,1.01189674,91876.0,91875.0,0.43590403]
[1740441203571,1.01189674,91876.0,91875.0,0.38170469]
[1740441204001,0.79729674,91876.0,91875.0,0.38170469]
[1740441204367,0.81069674,91876.0,91875.0,0.38170469]
[1740441204574,0.79729674,91876.0,91875.0,0.38170469]
[1740441204780,0.79729674,91876.0,91875.0,0.42730469]
[1740441205201,0.82774909,91876.0,91875.0,0.42730469]
[1740441205626,0.81069674,91876.0,91875.0,0.42730469]
[1740441207302,0.81239654,91876.0,91875.0,0.42730469]
[1740441207480,0.81239654,91876.0,91875.0,0.39631792]
[1740441208238,0.82944382,91876.0,91875.0,0.19961013]
[1740441208650,0.82944382,91876.0,91875.0,0.15401013]
[1740441209606,0.81239654,91876.0,91875.0,0.15401013]
[1740441212944,0.82944725,91876.0,91875.0,0.15401013]
[1740441213094,0.81604725,91876.0,91875.0,0.15401013]
[1740441213297,0.82944725,91876.0,91875.0,0.15401013]
[1740441213506,0.81239654,91876.0,91875.0,0.15401013]
[1740441213926,0.55184924,91876.0,91875.0,0.15401013]
[1740441216539,0.53844924,91876.0,91875.0,0.15401013]
[1740441216747,0.81239654,91876.0,91875.0,0.15401013]
[1740441217137,0.79899654,91876.0,91875.0,0.15401013]
[1740441217415,0.81239654,91876.0,91875.0,0.15401013]
[1740441218371,0.8294465,91876.0,91875.0,0.15401013]
[1740441219581,0.8160465,91876.0,91875.0,0.15401013]
[1740441219818,0.8294465,91876.0,91875.0,0.15401013]
[1740441219960,0.81239654,91876.0,91875.0,0.15401013]
[1740441220177,0.81239654,91876.0,91875.0,0.23391013]
[1740441220354,0.79899654,91876.0,91875.0,0.23391013]
[1740441220555,0.81239654,91876.0,91875.0,0.23391013]
[1740441220786,0.79899654,91876.0,91875.0,0.23391013]
[1740441220983,0.81239654,91876.0,91875.0,0.28071013]
[1740441221378,0.79899654,91876.0,91875.0,0.28071013]
[1740441221575,0.72089654,91876.0,91875.0,0.28071013]
[1740441221847,0.74561071,91876.0,91875.0,0.28071013]
[1740441222384,0.69561071,91876.0,91875.0,0.28071013]
[1740441222595,0.55411071,91876.0,91875.0,0.30071013]
[1740441222820,0.43941071,91876.0,91875.0,0.30071013]
[1740441223034,0.24791071,91876.0,91875.0,0.83821013]
[1740441223254,0.01051071,91876.0,91875.0,0.88151013]
[1740441223471,0.02391071,91876.0,91875.0,0.88151013]
[1740441223982,0.01051071,91876.0,91875.0,0.88151013]
[1740441224312,0.5,91893.0,91892.0,0.04]
[1740441224522,0.5,91893.0,91892.0,0.72545269]
[1740441225918,0.0134,91895.0,91894.0,0.03795269]
[1740441226255,0.0134,91895.0,91894.0,0.72545269]
[1740441226636,0.01704521,91895.0,91894.0,0.72545269]
[1740441226820,0.03040521,91895.0,91894.0,0.72545269]
[1740441227487,0.03230117,91895.0,91894.0,0.72545269]
[1740441227861,0.01894117,91895.0,91894.0,0.72545269]
[1740441228062,0.03230117,91895.0,91894.0,0.67526348]
[1740441228685,0.01894117,91895.0,91894.0,0.67526348]
[1740441229054,0.01704521,91895.0,91894.0,0.67526348]
[1740441229259,0.00213277,91901.0,91900.0,0.03795269]
[1740441229693,0.25,91918.0,91917.0,0.03795269]
[1740441229940,0.0150588,91933.0,91932.0,0.01795269]
[1740441230797,0.01696261,91933.0,91932.0,0.01795269]
[1740441230998,0.00360261,91933.0,91932.0,0.01795269]
[1740441231203,0.00360261,91933.0,91932.0,0.99659748]
[1740441231594,0.0016988,91933.0,91932.0,0.99659748]
[1740441234196,0.0016988,91933.0,91932.0,0.99547248]
[1740441235001,0.00182881,91933.0,91932.0,0.99547248]
[1740441236307,0.00182881,91933.0,91932.0,1.01547248]
[1740441236718,0.00182881,91933.0,91932.0,1.00063399]
[1740441237026,0.00182881,91933.0,91932.0,1.86153399]
[1740441237229,0.08296167,91969.0,91963.0,0.0019892]
[1740441237428,0.08296167,91969.0,91967.0,0.0219892]
[1740441237637,0.00182779,91968.0,91967.0,0.98063399]
[1740441237839,0.00182779,91968.0,91967.0,0.97864479]
[1740441238405,0.00182779,91968.0,91967.0,0.0019892]
[1740441238786,0.00182779,91968.0,91954.0,0.0019892]
[1740441238787,0.26518779,91968.0,91954.0,0.0019892]
[1740441239408,0.25182779,91968.0,91954.0,0.0019892]
[1740441239658,0.01336,91967.0,91957.0,0.0019892]
[1740441240313,0.01336,91967.0,91961.0,0.0019892]
[1740441240514,0.01336,91966.0,91961.0,0.0019892]
[1740441240721,0.01336,91966.0,91937.0,0.3224]
[1740441240722,0.01336,91966.0,91943.0,0.0019892]